bitfinex/quotes_BTCUSD_20250829
["timestamp","ask_amount","ask_price","bid_price","bid_amount"]
[1756443118608,1.90035075,111760.0,111750.0,0.00054329]
[1756443118848,1.87360331,111760.0,111750.0,0.00054329]
[1756443120254,1.72416331,111760.0,111750.0,0.00054329]
[1756443120442,1.87360331,111760.0,111750.0,0.00054329]
[1756443122530,1.90338657,111760.0,111750.0,0.00054329]
[1756443125708,1.903404,111760.0,111750.0,0.00054329]
[1756443126599,1.90340552,111760.0,111750.0,0.00054329]
[1756443126993,1.75396552,111760.0,111750.0,0.00054329]
[1756443127322,1.87362226,111760.0,111750.0,0.00054329]
[1756443132877,1.92810529,111760.0,111750.0,0.00054329]
[1756443136309,1.9134999,111760.0,111750.0,0.00054329]
[1756443136517,1.92811633,111760.0,111750.0,0.00054329]
[1756443136729,2.01641265,111760.0,111750.0,0.00054329]
[1756443137111,2.01641265,111760.0,111740.0,0.00318]
[1756443137112,0.98731835,111750.0,111740.0,0.00318]
[1756443137284,2.19338687,111750.0,111740.0,0.00024774]
[1756443137492,2.34278687,111750.0,111740.0,0.00024774]
[1756443137973,2.34637487,111750.0,111740.0,0.00024774]
[1756443138145,2.43467119,111750.0,111740.0,0.00024774]
[1756443138343,2.06191119,111750.0,111740.0,0.00024774]
[1756443138896,1.87464557,111750.0,111740.0,0.00024774]
[1756443139151,2.05361648,111750.0,111740.0,0.00024774]
[1756443139759,2.09395744,111750.0,111740.0,0.00024774]
[1756443140925,2.09495744,111750.0,111740.0,0.00024774]
[1756443141440,2.09595744,111750.0,111740.0,0.00024774]
[1756443143064,1.94655744,111750.0,111740.0,0.00024774]
[1756443143236,2.09595744,111750.0,111740.0,0.00024774]
[1756443145354,1.94655744,111750.0,111740.0,0.00024774]
[1756443145575,2.09595744,111750.0,111740.0,0.00024774]
[1756443145734,1.94655744,111750.0,111740.0,0.00024774]
[1756443145934,2.09595744,111750.0,111740.0,0.00024774]
[1756443146755,2.08969343,111750.0,111740.0,0.00024774]
[1756443146942,2.09593794,111750.0,111740.0,0.00024774]
[1756443147357,1.94653794,111750.0,111740.0,0.00024774]
[1756443147551,2.09593794,111750.0,111740.0,0.00523774]
[1756443147757,2.09613738,111750.0,111740.0,0.00523774]
[1756443147982,2.09613738,111750.0,111740.0,0.00319774]
[1756443149997,1.94673738,111750.0,111740.0,0.00319774]
[1756443150193,2.09613738,111750.0,111740.0,0.00319774]
[1756443152511,2.1170762,111750.0,111740.0,0.00024774]
[1756443153850,2.11707508,111750.0,111740.0,0.00024774]
[1756443154948,1.96767508,111750.0,111740.0,0.00024774]
[1756443155154,2.11707508,111750.0,111740.0,0.00024774]
[1756443156030,1.96767508,111750.0,111740.0,0.00024774]
[1756443156251,2.11707508,111750.0,111740.0,0.00024774]
[1756443156441,2.11707508,111750.0,111740.0,0.00319774]
[1756443157313,2.0920367,111750.0,111740.0,0.00319774]
[1756443157516,2.11707356,111750.0,111740.0,0.00319774]
[1756443158207,2.11707361,111750.0,111740.0,0.00319774]
[1756443158591,2.11707361,111750.0,111740.0,0.00024774]
[1756443161001,2.11707361,111750.0,111740.0,0.00319774]
[1756443161554,2.11707361,111750.0,111740.0,0.00024774]
[1756443162119,2.11707361,111750.0,111740.0,3.701e-05]
[1756443165417,2.11707361,111750.0,111740.0,0.00298701]
[1756443165803,2.11707736,111750.0,111740.0,0.00298701]
[1756443167721,2.11817957,111750.0,111740.0,0.00298701]
[1756443167926,2.14115299,111750.0,111740.0,0.00298701]
[1756443168764,2.14115424,111750.0,111740.0,0.00298701]
[1756443170017,2.14115424,111750.0,111740.0,0.00505701]
[1756443171031,2.14115424,111750.0,111740.0,0.00298701]
[1756443171386,2.14115361,111750.0,111740.0,3.701e-05]
[1756443171587,2.14115361,111750.0,111740.0,0.00314701]
[1756443172196,2.14115361,111750.0,111740.0,3.701e-05]
[1756443172403,2.14115361,111750.0,111730.0,1e-08]
[1756443172404,0.17898693,111740.0,111730.0,1e-08]
[1756443172601,0.17898693,111740.0,111720.0,0.0002]
[1756443172602,0.51900295,111730.0,111720.0,0.0002]
[1756443172807,2.33467337,111730.0,111720.0,0.0002]
[1756443172999,2.34302689,111730.0,111720.0,0.00227]
[1756443173201,2.33826237,111730.0,111720.0,0.00227]
[1756443173402,2.42549606,111730.0,111720.0,0.00227]
[1756443174092,2.42549606,111730.0,111720.0,0.00327]
[1756443174624,2.42549606,111730.0,111720.0,0.00638]
[1756443174812,2.42549039,111730.0,111720.0,0.00738]
[1756443175168,2.42549039,111730.0,111720.0,0.00538]
[1756443175370,2.43461787,111730.0,111720.0,0.00538]
[1756443176004,2.08812035,111730.0,111720.0,0.00538]
[1756443177126,2.43461787,111730.0,111720.0,0.00538]
[1756443177693,2.08812035,111730.0,111720.0,0.00538]
[1756443178114,2.07141241,111730.0,111720.0,0.00538]
[1756443178337,2.08809553,111730.0,111720.0,0.00538]
[1756443178700,2.43674305,111730.0,111720.0,0.00538]
[1756443179117,2.43674058,111730.0,111720.0,0.00538]
[1756443179331,2.28714058,111730.0,111720.0,0.00538]
[1756443179545,2.43698058,111730.0,111720.0,0.00538]
[1756443180164,2.28714058,111730.0,111720.0,0.00538]
[1756443180411,2.43698058,111730.0,111720.0,0.00538]
[1756443180824,2.43483058,111730.0,111720.0,0.00538]
[1756443180960,2.43698058,111730.0,111720.0,0.00538]
[1756443181164,2.43697972,111730.0,111720.0,0.00538]
[1756443183417,2.2683053,111730.0,111720.0,0.00538]
[1756443183623,2.4348403,111730.0,111720.0,0.00538]
[1756443183822,2.4369003,111730.0,111720.0,0.00538]
[1756443184023,2.2870603,111730.0,111720.0,0.00538]
[1756443184276,2.4368603,111730.0,111720.0,0.00538]
[1756443184495,2.08830278,111730.0,111720.0,0.00538]
[1756443184674,2.09036278,111730.0,111720.0,0.00538]
[1756443185175,2.08830278,111730.0,111720.0,0.00538]
[1756443185342,1.93850278,111730.0,111720.0,0.00538]
[1756443185538,2.08830278,111730.0,111720.0,0.00538]
[1756443186403,2.4348003,111730.0,111720.0,0.00538]
[1756443186804,2.2850003,111730.0,111720.0,0.00538]
[1756443186958,2.40805286,111730.0,111720.0,0.00538]
[1756443187644,2.38510206,111730.0,111720.0,0.00538]
[1756443187864,2.40806679,111730.0,111720.0,0.00538]
[1756443188608,2.41012679,111730.0,111720.0,0.00538]
[1756443189000,2.43687423,111730.0,111720.0,0.00538]
[1756443189544,2.43687423,111730.0,111720.0,0.0002]
[1756443190607,2.41468368,111730.0,111720.0,1e-08]
[1756443190806,0.57350199,111720.0,111710.0,0.00331]
[1756443190959,1.78611928,111720.0,111710.0,0.00331]
[1756443191169,1.78611928,111720.0,111710.0,0.00538]
[1756443191729,1.81303628,111720.0,111710.0,0.00538]
[1756443192462,1.83955964,111720.0,111710.0,0.00638]
[1756443193179,1.83955964,111720.0,111710.0,0.00738]
[1756443194708,1.85274088,111720.0,111710.0,0.00738]
[1756443196745,1.88155832,111720.0,111710.0,0.00738]
[1756443197309,1.88155832,111720.0,111710.0,0.00638]
[1756443197667,1.88155832,111720.0,111710.0,0.00538]
[1756443198315,1.90082123,111720.0,111710.0,0.00545]
[1756443199226,1.98912107,111720.0,111710.0,0.00545]
[1756443199590,1.98912107,111720.0,111710.0,0.0002]
[1756443200283,1.98912107,111720.0,111710.0,0.0033]
[1756443200655,0.519035,111710.0,111700.0,0.0031]
[1756443200855,1.41663307,111710.0,111700.0,0.0031]
[1756443201066,1.50492939,111710.0,111700.0,0.00525]
[1756443201462,1.39844709,111710.0,111700.0,0.00525]
[1756443201661,1.54856709,111710.0,111700.0,0.00525]
[1756443201900,1.54856709,111710.0,111700.0,0.00533544]
[1756443202092,1.63686341,111710.0,111700.0,0.00533544]
[1756443203026,1.63686341,111710.0,111700.0,0.00633544]
[1756443203520,0.70545205,111710.0,111700.0,0.00633544]
[1756443203722,1.54856709,111710.0,111700.0,0.00533544]
[1756443205247,1.52181965,111710.0,111700.0,0.00533544]
[1756443205948,1.49408406,111710.0,111700.0,0.00533544]
[1756443208872,1.49408655,111710.0,111700.0,0.00533544]
[1756443209074,1.58238287,111710.0,111700.0,0.00533544]
[1756443209453,1.43226287,111710.0,111700.0,0.00533544]
[1756443209648,1.58230287,111710.0,111700.0,0.00533544]
[1756443210865,0.73926783,111710.0,111700.0,0.00533544]
[1756443211073,1.23580535,111710.0,111700.0,0.00533544]
[1756443211868,1.23779539,111710.0,111700.0,0.00533544]
[1756443212302,1.58429291,111710.0,111700.0,0.00533544]
[1756443212474,1.58230291,111710.0,111700.0,0.00533544]
[1756443215096,1.58429291,111710.0,111700.0,0.00533544]
[1756443215869,1.63890472,111710.0,111700.0,0.00533544]
[1756443218023,1.63691472,111710.0,111700.0,0.00533544]
[1756443218425,1.64517696,111710.0,111700.0,0.00533544]
[1756443218961,0.95218192,111710.0,111700.0,0.00533544]
[1756443219270,1.64517696,111710.0,111700.0,0.00533544]
[1756443219471,1.64518777,111710.0,111700.0,0.00533544]
[1756443220478,1.61645054,111710.0,111700.0,0.00533544]
[1756443221654,1.61844054,111710.0,111700.0,0.00533544]
[1756443221861,1.63771689,111710.0,111700.0,0.00533544]
[1756443223236,1.63572689,111710.0,111700.0,0.00533544]
[1756443223948,1.28922937,111710.0,111700.0,0.00533544]
[1756443224679,0.56523135,111710.0,111700.0,0.35183296]
[1756443224896,0.179035,111710.0,111700.0,0.96567782]
[1756443225108,0.179035,111710.0,111700.0,0.7866268]
[1756443225316,0.16861012,111720.0,111700.0,0.6191803]
[1756443225482,0.16961022,111720.0,111710.0,0.34649752]
[1756443225665,0.50961022,111720.0,111710.0,0.0031]
[1756443225908,0.50861012,111720.0,111710.0,0.00525]
[1756443226187,0.16861012,111720.0,111710.0,0.35174752]
[1756443226392,0.85610774,111720.0,111710.0,0.00525]
[1756443226560,0.50861012,111720.0,111710.0,0.00525]
[1756443227030,0.50961012,111720.0,111710.0,0.00525]
[1756443228359,0.50899112,111720.0,111710.0,0.00525]
[1756443228568,0.85548864,111720.0,111710.0,0.00525]
[1756443232798,0.91010045,111720.0,111710.0,0.00525]
[1756443234175,0.85548864,111720.0,111710.0,0.00525]
[1756443234616,0.85548864,111720.0,111710.0,0.00458983]
[1756443235579,0.85760864,111720.0,111710.0,0.00458983]
[1756443236674,0.85548864,111720.0,111710.0,0.00458983]
[1756443238564,1.20198616,111720.0,111710.0,0.00458983]
[1756443239352,1.20198616,111720.0,111710.0,0.15430983]
[1756443239608,1.20198616,111720.0,111710.0,0.00458983]
[1756443239799,1.20410616,111720.0,111710.0,0.15430983]
[1756443241389,1.20198616,111720.0,111710.0,0.15430983]
[1756443242383,0.85548864,111720.0,111710.0,0.15430983]
[1756443242957,0.85548864,111720.0,111710.0,0.15654776]
[1756443243162,1.20198616,111720.0,111710.0,0.15654776]
[1756443243327,1.20410616,111720.0,111710.0,0.00223793]
[1756443243545,0.179035,111710.0,111700.0,0.23810176]
[1756443243760,0.179035,111710.0,111700.0,0.14980544]
[1756443243761,1.24514441,111710.0,111700.0,0.14980544]
[1756443243975,1.24514441,111710.0,111700.0,8.544e-05]
[1756443244388,1.39502441,111710.0,111700.0,8.544e-05]
[1756443244809,1.39502441,111710.0,111700.0,0.00108544]
[1756443245419,1.04899202,111710.0,111700.0,0.00208544]
[1756443245665,1.07573946,111710.0,111700.0,0.00208544]
[1756443246286,1.07573946,111710.0,111700.0,8.544e-05]
[1756443246523,1.07673946,111710.0,111700.0,8.544e-05]
[1756443246738,1.07573946,111710.0,111700.0,8.544e-05]
[1756443247076,1.07673946,111710.0,111700.0,8.544e-05]
[1756443247783,1.16503578,111710.0,111700.0,8.544e-05]
[1756443247966,1.07673946,111710.0,111700.0,8.544e-05]
[1756443249876,0.92685946,111710.0,111700.0,8.544e-05]
[1756443250076,1.07673946,111710.0,111700.0,8.544e-05]
[1756443251357,1.10365846,111710.0,111700.0,8.544e-05]
[1756443253653,1.07579409,111710.0,111700.0,8.544e-05]
[1756443254034,0.92591409,111710.0,111700.0,8.544e-05]
[1756443257342,0.89916665,111710.0,111700.0,8.544e-05]
[1756443257529,1.04896665,111710.0,111700.0,8.544e-05]
[1756443259561,0.89916665,111710.0,111700.0,8.544e-05]
[1756443260032,0.89603665,111710.0,111700.0,8.544e-05]
[1756443260585,0.89928665,111710.0,111700.0,8.544e-05]
[1756443261374,1.04900665,111710.0,111700.0,8.544e-05]
[1756443262644,1.11802132,111710.0,111700.0,8.544e-05]
[1756443262794,1.14476876,111710.0,111700.0,8.544e-05]
[1756443264983,1.10361414,111710.0,111700.0,8.544e-05]
[1756443265383,1.45060823,111710.0,111700.0,8.544e-05]
[1756443266782,0.75665149,111710.0,111700.0,8.544e-05]
[1756443266983,1.45060823,111710.0,111700.0,8.544e-05]
[1756443273085,1.44735823,111710.0,111700.0,8.544e-05]
[1756443273299,1.31436819,111710.0,111700.0,8.544e-05]
[1756443273494,1.53557455,111710.0,111700.0,8.544e-05]
[1756443273994,1.53557455,111710.0,111700.0,0.00526544]
[1756443274218,1.50878711,111710.0,111700.0,0.00526544]
[1756443274412,1.4372217,111710.0,111700.0,8.544e-05]
[1756443274612,1.40936165,111710.0,111700.0,8.544e-05]
[1756443276033,1.40936165,111710.0,111700.0,0.00224544]
[1756443276800,1.25976165,111710.0,111700.0,0.00526544]
[1756443276998,1.40940165,111710.0,111700.0,0.00526544]
[1756443277254,1.40940165,111710.0,111700.0,0.00224544]
[1756443277832,1.40940165,111710.0,111700.0,0.00526544]
[1756443278033,1.40940165,111710.0,111700.0,0.00224544]
[1756443278412,1.49769797,111710.0,111700.0,0.00224544]
[1756443278827,1.25976165,111710.0,111700.0,0.00224544]
[1756443279103,1.40936165,111710.0,111700.0,0.00224544]
[1756443279259,1.40936165,111710.0,111700.0,0.00526544]
[1756443281866,1.40936683,111710.0,111700.0,0.00526544]
[1756443282071,1.17510105,111710.0,111700.0,0.00526544]
[1756443282272,1.35413605,111710.0,111700.0,0.00526544]
[1756443282674,1.35413686,111710.0,111700.0,0.00526544]
[1756443286799,1.35413686,111710.0,111700.0,0.00224544]
[1756443287660,1.35413686,111710.0,111700.0,8.544e-05]
[1756443289021,1.20241686,111710.0,111700.0,0.00213544]
[1756443289193,1.33523996,111710.0,111700.0,0.00517544]
[1756443289403,1.33737996,111710.0,111700.0,0.00517544]
[1756443289826,1.35412268,111710.0,111700.0,0.00517544]
[1756443291221,1.15484267,111710.0,111700.0,0.00517544]
[1756443291430,0.91979346,111710.0,111700.0,0.00517544]
[1756443291606,0.55393237,111710.0,111700.0,0.00517544]
[1756443291861,0.180035,111710.0,111700.0,0.00517544]
[1756443292046,0.52701337,111710.0,111700.0,0.00517544]
[1756443292248,0.52701337,111710.0,111700.0,0.00741357]
[1756443292854,0.52701337,111710.0,111700.0,0.00841357]
[1756443293016,0.52601337,111710.0,111700.0,0.00841357]
[1756443293226,0.52601337,111710.0,111700.0,0.00941357]
[1756443294784,0.86601337,111710.0,111700.0,0.00941357]
[1756443298773,0.86601337,111710.0,111700.0,0.00717544]
[1756443299248,0.86601337,111710.0,111700.0,0.00208544]
[1756443299249,1.62500177,111710.0,111700.0,0.00208544]
[1756443299458,1.65174921,111710.0,111700.0,0.00208544]
[1756443299650,1.33168884,111710.0,111700.0,0.00208544]
[1756443300069,0.6377321,111710.0,111700.0,0.00208544]
[1756443300257,1.26990979,111710.0,111700.0,0.00617544]
[1756443300458,1.26990979,111710.0,111700.0,0.00313544]
[1756443300634,0.89293137,111710.0,111700.0,0.00517544]
[1756443300853,0.545953,111710.0,111700.0,0.00517544]
[1756443301052,0.89393137,111710.0,111700.0,0.00517544]
[1756443301252,0.89607137,111710.0,111700.0,0.00517544]
[1756443301466,0.89507137,111710.0,111700.0,0.00517544]
[1756443301758,0.545953,111710.0,111700.0,0.00517544]
[1756443301968,0.86601337,111710.0,111700.0,0.00517544]
[1756443302169,0.86815337,111710.0,111700.0,0.00413544]
[1756443302369,1.21513174,111710.0,111700.0,0.00413544]
[1756443302608,1.21513174,111710.0,111700.0,0.00208544]
[1756443303055,1.21834174,111710.0,111700.0,0.00208544]
[1756443303231,1.21513174,111710.0,111700.0,0.00208544]
[1756443303626,1.21834174,111710.0,111700.0,0.00108544]
[1756443304108,1.21934174,111710.0,111700.0,0.00108544]
[1756443304473,1.21834174,111710.0,111700.0,0.00108544]
[1756443304891,1.21513174,111710.0,111700.0,0.00108544]
[1756443305190,1.24299179,111710.0,111700.0,0.00208544]
[1756443307154,1.24620179,111710.0,111700.0,0.00208544]
[1756443310436,1.00745293,111710.0,111700.0,0.00208544]
[1756443310644,1.18648793,111710.0,111700.0,0.00208544]
[1756443310877,1.18648793,111710.0,111700.0,0.00108544]
[1756443311080,0.80629951,111710.0,111700.0,0.00617544]
[1756443311286,0.80729951,111710.0,111700.0,0.00517544]
[1756443311459,0.46032114,111710.0,111700.0,0.00517544]
[1756443311663,0.80729951,111710.0,111700.0,0.00517544]
[1756443312441,0.80629951,111710.0,111700.0,0.00517544]
[1756443312643,0.52601337,111710.0,111700.0,0.00617544]
[1756443313085,0.52815337,111710.0,111700.0,0.00208544]
[1756443313493,0.87513174,111710.0,111700.0,0.00208544]
[1756443314212,0.87513174,111710.0,111700.0,0.00108544]
[1756443314371,0.87613174,111710.0,111700.0,8.544e-05]
[1756443318147,0.90720179,111710.0,111700.0,8.544e-05]
[1756443318334,1.05924179,111710.0,111700.0,8.544e-05]
[1756443319084,1.10412032,111710.0,111700.0,8.544e-05]
[1756443319275,1.08598923,111710.0,111700.0,8.544e-05]
[1756443319481,0.93394923,111710.0,111700.0,8.544e-05]
[1756443319679,1.11286823,111710.0,111700.0,8.544e-05]
[1756443325113,0.93412079,111710.0,111700.0,8.544e-05]
[1756443325357,1.08596079,111710.0,111700.0,8.544e-05]
[1756443325550,1.17425711,111710.0,111700.0,8.544e-05]
[1756443326770,1.08592079,111710.0,111700.0,8.544e-05]
[1756443329217,1.09219379,111710.0,111700.0,8.544e-05]
[1756443329443,1.08592079,111710.0,111700.0,8.544e-05]
[1756443331144,1.08576079,111710.0,111700.0,8.544e-05]
[1756443332130,1.08255079,111710.0,111700.0,8.544e-05]
[1756443332348,1.10555219,111710.0,111700.0,8.544e-05]
[1756443332873,1.10551219,111710.0,111700.0,8.544e-05]
[1756443333399,1.10852219,111710.0,111700.0,8.544e-05]
[1756443333602,1.08552079,111710.0,111700.0,8.544e-05]
[1756443333779,1.10852209,111710.0,111700.0,8.544e-05]
[1756443334629,1.1085221,111710.0,111700.0,8.544e-05]
[1756443334809,1.19681842,111710.0,111700.0,8.544e-05]
[1756443337984,1.19380842,111710.0,111700.0,8.544e-05]
[1756443338989,1.19681842,111710.0,111700.0,8.544e-05]
[1756443339348,1.04220842,111710.0,111700.0,8.544e-05]
[1756443339564,1.1052721,111710.0,111700.0,0.00217544]
[1756443339766,1.1052721,111710.0,111700.0,8.544e-05]
[1756443344026,1.10527501,111710.0,111700.0,8.544e-05]
[1756443344287,1.08854464,111710.0,111700.0,8.544e-05]
[1756443344707,1.08854505,111710.0,111700.0,8.544e-05]
[1756443345185,1.08227079,111710.0,111700.0,8.544e-05]
[1756443345822,1.08211079,111710.0,111700.0,8.544e-05]
[1756443347924,1.05421074,111710.0,111700.0,0.00541544]
[1756443351580,1.05744074,111710.0,111700.0,8.544e-05]
[1756443351828,1.08530079,111710.0,111700.0,8.544e-05]
[1756443352029,1.1284866,111710.0,111700.0,8.544e-05]
[1756443353138,1.13476293,111710.0,111700.0,8.544e-05]
[1756443354533,1.134763,111710.0,111700.0,8.544e-05]
[1756443355071,1.17552978,111710.0,111700.0,8.544e-05]
[1756443355963,1.1755298,111710.0,111700.0,8.544e-05]
[1756443356167,1.5155298,111710.0,111700.0,8.544e-05]
[1756443356393,1.95110276,111710.0,111700.0,8.544e-05]
[1756443356599,1.62320489,111710.0,111700.0,8.544e-05]
[1756443356797,1.61997489,111710.0,111700.0,8.544e-05]
[1756443358220,1.62320489,111710.0,111700.0,8.544e-05]
[1756443359091,1.71150121,111710.0,111700.0,8.544e-05]
[1756443359502,2.15310121,111710.0,111700.0,8.544e-05]
[1756443361094,2.15309834,111710.0,111700.0,8.544e-05]
[1756443361301,2.14982834,111710.0,111700.0,8.544e-05]
[1756443361716,1.99890834,111710.0,111700.0,8.544e-05]
[1756443361934,2.14982834,111710.0,111700.0,0.00217544]
[1756443363208,2.14982834,111710.0,111700.0,8.544e-05]
[1756443363698,2.14982834,111710.0,111700.0,0.00217544]
[1756443363900,2.14355479,111710.0,111700.0,0.00217544]
[1756443364131,2.00691365,111710.0,111700.0,0.00520544]
[1756443364364,2.00691365,111710.0,111700.0,8.544e-05]
[1756443364584,2.06473917,111710.0,111700.0,8.544e-05]
[1756443365298,2.06473861,111710.0,111700.0,8.544e-05]
[1756443367867,2.06474067,111710.0,111700.0,8.544e-05]
[1756443368300,2.15303699,111710.0,111700.0,8.544e-05]
[1756443369375,2.15303633,111710.0,111700.0,8.544e-05]
[1756443372896,2.06474001,111710.0,111700.0,8.544e-05]
[1756443373234,1.91382001,111710.0,111700.0,8.544e-05]
[1756443373446,2.06462001,111710.0,111700.0,8.544e-05]
[1756443374420,2.06139001,111710.0,111700.0,8.544e-05]
[1756443374622,2.0383892,111710.0,111700.0,8.544e-05]
[1756443374844,2.06138996,111710.0,111700.0,8.544e-05]
[1756443375135,2.15291628,111710.0,111700.0,8.544e-05]
[1756443375549,2.15291651,111710.0,111700.0,8.544e-05]
[1756443375759,1.99888651,111710.0,111700.0,8.544e-05]
[1756443375985,2.14964651,111710.0,111700.0,0.00217544]
[1756443376422,2.14964651,111710.0,111700.0,0.00520544]
[1756443377489,1.90845019,111710.0,111700.0,0.00520544]
[1756443377714,2.0045627,111710.0,111700.0,0.00520544]
[1756443378357,2.00456308,111710.0,111700.0,0.00520544]
[1756443378542,1.85384308,111710.0,111700.0,0.00520544]
[1756443378805,2.00456308,111710.0,111700.0,0.00520544]
[1756443379612,1.98529521,111710.0,111700.0,0.00520544]
[1756443381754,1.98530346,111710.0,111700.0,0.00520544]
[1756443382047,1.83458346,111710.0,111700.0,0.00520544]
[1756443382255,1.98526346,111710.0,111700.0,0.00520544]
[1756443383183,1.98727346,111710.0,111700.0,0.00520544]
[1756443383955,1.98727346,111710.0,111700.0,8.544e-05]
[1756443384151,1.98727346,111710.0,111700.0,0.00520544]
[1756443384289,2.00655883,111710.0,111700.0,0.00520544]
[1756443384700,1.98727346,111710.0,111700.0,0.00520544]
[1756443384910,1.74829714,111710.0,111700.0,0.00520544]
[1756443385094,1.88011573,111710.0,111700.0,0.00520544]
[1756443385299,1.89685762,111710.0,111700.0,0.00520544]
[1756443385743,1.89057941,111710.0,111700.0,0.00520544]
[1756443385892,1.89685823,111710.0,111700.0,0.00520544]
[1756443387455,2.04177204,111710.0,111700.0,8.544e-05]
[1756443387791,2.061062,111710.0,111700.0,8.544e-05]
[1756443388646,2.06943443,111710.0,111700.0,8.544e-05]
[1756443388863,2.41961639,111710.0,111700.0,8.544e-05]
[1756443389077,2.50791271,111710.0,111700.0,8.544e-05]
[1756443392155,2.50791395,111710.0,111700.0,8.544e-05]
[1756443394781,8.56635388,111710.0,111700.0,1e-08]
[1756443394989,8.62239243,111710.0,111700.0,1e-08]
[1756443395209,8.18079243,111710.0,111700.0,1e-08]
[1756443395454,8.16613941,111710.0,111700.0,1e-08]
[1756443395692,6.90098355,111710.0,111700.0,1e-08]
[1756443395812,7.05426355,111710.0,111700.0,1e-08]
[1756443396043,8.08055442,111710.0,111700.0,1e-08]
[1756443396249,8.09519882,111710.0,111700.0,1e-08]
[1756443396503,8.09719882,111710.0,111700.0,1e-08]
[1756443396900,8.10119655,111710.0,111700.0,1e-08]
[1756443397332,8.15753916,111710.0,111700.0,1e-08]
[1756443398135,8.00425916,111710.0,111700.0,1e-08]
[1756443398291,8.15793916,111710.0,111700.0,1e-08]
[1756443398880,8.13007911,111710.0,111700.0,1e-08]
[1756443399083,8.15965186,111710.0,111700.0,1e-08]
[1756443400325,8.19160557,111710.0,111700.0,1e-08]
[1756443400713,8.19160557,111710.0,111680.0,0.0002]
[1756443400920,1.22000217,111690.0,111680.0,0.00034326]
[1756443401195,1.659324,111690.0,111680.0,0.00034326]
[1756443401376,1.68309726,111690.0,111680.0,0.00034326]
[1756443401779,2.02309726,111690.0,111680.0,0.00034326]
[1756443402002,2.03145416,111690.0,111680.0,0.00034326]
[1756443402202,7.02802016,111690.0,111680.0,0.00034326]
[1756443402755,7.02902016,111690.0,111680.0,0.00034326]
[1756443403425,8.05687077,111690.0,111680.0,1e-08]
[1756443403638,0.51909913,111670.0,111660.0,0.00325]
[1756443403850,1.1147657,111670.0,111660.0,0.00329776]
[1756443404037,6.17144986,111670.0,111660.0,0.00329776]
[1756443404273,6.1521599,111670.0,111660.0,0.00536776]
[1756443404476,6.0246089,111670.0,111660.0,0.00536776]
[1756443404655,6.1790889,111670.0,111660.0,0.00536776]
[1756443404997,6.0246089,111670.0,111660.0,0.00636776]
[1756443405210,6.1790489,111670.0,111660.0,0.00736776]
[1756443405407,6.52043942,111670.0,111660.0,0.00736776]
[1756443405612,6.52669593,111670.0,111660.0,0.00736776]
[1756443405818,6.60141594,111670.0,111660.0,0.00224776]
[1756443406086,6.4604999,111670.0,111660.0,0.00224776]
[1756443406293,6.4604999,111670.0,111660.0,0.00736776]
[1756443406506,6.6149799,111670.0,111660.0,0.00736776]
[1756443406884,6.65602474,111670.0,111660.0,0.00736776]
[1756443407095,6.65602474,111670.0,111660.0,0.00431776]
[1756443407302,7.02056082,111670.0,111660.0,0.00224776]
[1756443407696,7.01732082,111670.0,111660.0,0.00431776]
[1756443407867,7.01732082,111670.0,111660.0,0.00224776]
[1756443408061,7.01740082,111670.0,111660.0,0.00736776]
[1756443408313,7.00338521,111670.0,111660.0,0.00431776]
[1756443409526,6.84886521,111670.0,111660.0,0.00431776]
[1756443409747,7.00346521,111670.0,111660.0,0.00724776]
[1756443410289,6.84886521,111670.0,111660.0,0.00724776]
[1756443410490,7.00137521,111670.0,111660.0,0.00724776]
[1756443411365,7.02057669,111670.0,111660.0,0.00724776]
[1756443411814,7.02053669,111670.0,111660.0,0.00724776]
[1756443412443,7.02049669,111670.0,111660.0,0.00724776]
[1756443412656,7.02069669,111670.0,111660.0,0.00724776]
[1756443413069,7.31268669,111670.0,111660.0,0.00224776]
[1756443413273,7.46732669,111670.0,111660.0,0.00224776]
[1756443413878,7.46431669,111670.0,111660.0,0.00224776]
[1756443414893,7.30967669,111670.0,111660.0,0.00224776]
[1756443415111,7.46431669,111670.0,111660.0,0.00224776]
[1756443415488,7.46423669,111670.0,111660.0,0.00224776]
[1756443415701,7.46423669,111670.0,111660.0,0.00429776]
[1756443415886,7.46423669,111670.0,111660.0,0.00722776]
[1756443416529,7.46421851,111670.0,111660.0,0.00722776]
[1756443417159,7.46421851,111670.0,111660.0,0.00429776]
[1756443417362,7.46421851,111670.0,111660.0,0.00224776]
[1756443418392,7.48816733,111670.0,111660.0,1e-08]
[1756443418626,0.57893397,111660.0,111650.0,0.0002]
[1756443418832,6.99197493,111660.0,111650.0,0.00034328]
[1756443419042,6.99399493,111660.0,111650.0,0.00034328]
[1756443419692,7.04202859,111660.0,111650.0,0.00034328]
[1756443420086,7.04561959,111660.0,111650.0,0.00034328]
[1756443420298,0.51913121,111650.0,111640.0,1e-08]
[1756443420501,6.96062024,111650.0,111640.0,4.766e-05]
[1756443420704,1.46303377,111650.0,111640.0,4.766e-05]
[1756443420899,1.65000451,111650.0,111640.0,4.766e-05]
[1756443421398,1.51840935,111650.0,111640.0,4.766e-05]
[1756443421602,1.67408935,111650.0,111640.0,4.766e-05]
[1756443421929,1.43411303,111650.0,111640.0,4.766e-05]
[1756443422147,1.58975303,111650.0,111640.0,4.766e-05]
[1756443422764,1.46105203,111650.0,111640.0,4.766e-05]
[1756443422991,1.60630011,111650.0,111640.0,4.766e-05]
[1756443423187,1.53068838,111650.0,111640.0,0.00502766]
[1756443423387,1.58330129,111650.0,111640.0,0.00502766]
[1756443423962,1.71184657,111650.0,111640.0,0.00502766]
[1756443424144,1.62155025,111650.0,111640.0,0.00502766]
[1756443424346,1.61951025,111650.0,111640.0,0.00502766]
[1756443424582,1.62051025,111650.0,111640.0,0.00502766]
[1756443424794,2.06207025,111650.0,111640.0,0.00502766]
[1756443425003,2.02977951,111650.0,111640.0,0.00502766]
[1756443425205,2.00225144,111650.0,111640.0,0.00502766]
[1756443425612,2.00221144,111650.0,111640.0,0.00502766]
[1756443425830,2.00223655,111650.0,111640.0,0.00502766]
[1756443426450,2.02272314,111650.0,111640.0,0.00502766]
[1756443426665,2.08254363,111650.0,111640.0,0.00502766]
[1756443427766,2.08456363,111650.0,111640.0,0.00209766]
[1756443427946,2.08456363,111650.0,111640.0,4.766e-05]
[1756443428358,2.11651734,111650.0,111640.0,0.00209766]
[1756443428570,2.11651734,111650.0,111640.0,0.00502766]
[1756443428787,2.11449734,111650.0,111640.0,0.00502766]
[1756443428999,1.95905734,111650.0,111640.0,0.00502766]
[1756443429428,2.11461734,111650.0,111640.0,0.00502766]
[1756443429653,1.95905734,111650.0,111640.0,0.00502766]
[1756443429870,1.3870966,111650.0,111640.0,0.00502766]
[1756443430699,1.73441707,111650.0,111640.0,0.00502766]
[1756443431911,1.3870966,111650.0,111640.0,0.00502766]
[1756443432736,1.38714446,111650.0,111640.0,0.00502766]
[1756443434896,1.03982399,111650.0,111640.0,0.00502766]
[1756443435123,1.38714446,111650.0,111640.0,0.007267]
[1756443435580,1.38714446,111650.0,111640.0,0.00502766]
[1756443436000,1.37042149,111650.0,111640.0,0.00502766]
[1756443436210,1.38714787,111650.0,111640.0,0.00502766]
[1756443436413,1.37042242,111650.0,111640.0,0.00502766]
[1756443436614,0.92882242,111650.0,111640.0,0.00502766]
[1756443436819,0.92882242,111650.0,111640.0,0.007267]